[Event "Titled Tuesday Blitz May 23 Early 2023"]
[White "Bagwe Gaurang"]
[Black "Ilkhomi, Jaloliddin"]
[WhiteFideId "45039895"]
[BlackFideId "14700948"]
[WhiteElo "1847"]
[BlackElo "2045"]
[Result "0-1"]
[Round "11"]
[TimeControl "180+2"]
[Date "2023.05.23"]
[WhiteClock "0:00:00"]
[BlackClock "0:01:46"]

1. e4 {[%clk 0:03:00]}  e6 {[%clk 0:02:57]} 2. d4 {[%clk 0:02:58]}  d5 {[%clk 0:02:57]} 3. Nd2 {[%clk 0:02:59]}  Nf6 {[%clk 0:02:56]} 4. e5 {[%clk 0:02:58]}  Nfd7 {[%clk 0:02:56]} 5. Bd3 {[%clk 0:02:59]}  c5 {[%clk 0:02:57]} 6. c3 {[%clk 0:03:00]}  Nc6 {[%clk 0:02:58]} 7. Ne2 {[%clk 0:03:00]}  cxd4 {[%clk 0:02:58]} 8. cxd4 {[%clk 0:03:01]}  f6 {[%clk 0:02:59]} 9. exf6 {[%clk 0:03:01]}  Qxf6 {[%clk 0:03:00]} 10. O-O {[%clk 0:03:02]}  Bd6 {[%clk 0:02:59]} 11. Nf3 {[%clk 0:03:02]}  h6 {[%clk 0:02:59]} 12. Re1 {[%clk 0:02:46]}  O-O {[%clk 0:02:59]} 13. Bc2 {[%clk 0:02:35]}  Rf7 {[%clk 0:02:59]} 14. Qd3 {[%clk 0:02:32]}  Nf8 {[%clk 0:02:59]} 15. a3 {[%clk 0:02:32]}  Rc7 {[%clk 0:02:59]} 16. Ng3 {[%clk 0:02:30]}  Bd7 {[%clk 0:02:59]} 17. Bd2 {[%clk 0:01:29]}  Rac8 {[%clk 0:02:56]} 18. Rac1 {[%clk 0:01:26]}  Be8 {[%clk 0:02:56]} 19. Qe3 {[%clk 0:01:12]}  Bg6 {[%clk 0:02:52]} 20. Bxg6 {[%clk 0:01:09]}  Qxg6 {[%clk 0:02:53]} 21. b4 {[%clk 0:00:57]}  a6 {[%clk 0:02:53]} 22. h4 {[%clk 0:00:57]}  Qf6 {[%clk 0:02:52]} 23. h5 {[%clk 0:00:50]}  Ne7 {[%clk 0:02:52]} 24. Ne5 {[%clk 0:00:44]}  Nf5 {[%clk 0:02:49]} 25. Nxf5 {[%clk 0:00:41]}  Qxf5 {[%clk 0:02:50]} 26. Rcd1 {[%clk 0:00:38]}  Bxe5 {[%clk 0:02:42]} 27. Qxe5 {[%clk 0:00:36]}  Qxe5 {[%clk 0:02:41]} 28. Rxe5 {[%clk 0:00:37]}  Rc2 {[%clk 0:02:41]} 29. Bf4 {[%clk 0:00:32]}  Ra2 {[%clk 0:02:35]} 30. Re3 {[%clk 0:00:32]}  Rcc2 {[%clk 0:02:34]} 31. Bg3 {[%clk 0:00:29]}  Rd2 {[%clk 0:02:31]} 32. Rc1 {[%clk 0:00:29]}  Rac2 {[%clk 0:02:30]} 33. Rxc2 {[%clk 0:00:25]}  Rxc2 {[%clk 0:02:31]} 34. Bd6 {[%clk 0:00:25]}  Rc6 {[%clk 0:02:31]} 35. Bxf8 {[%clk 0:00:21]}  Kxf8 {[%clk 0:02:32]} 36. f4 {[%clk 0:00:20]}  Kf7 {[%clk 0:02:31]} 37. g3 {[%clk 0:00:19]}  Rc2 {[%clk 0:02:31]} 38. Rb3 {[%clk 0:00:16]}  Rd2 {[%clk 0:02:30]} 39. b5 {[%clk 0:00:16]}  a5 {[%clk 0:02:30]} 40. b6 {[%clk 0:00:17]}  Rxd4 {[%clk 0:02:30]} 41. Rc3 {[%clk 0:00:17]}  Rc4 {[%clk 0:02:30]} 42. Rb3 {[%clk 0:00:17]}  Rc5 {[%clk 0:02:29]} 43. a4 {[%clk 0:00:17]}  Rc4 {[%clk 0:02:23]} 44. Rb5 {[%clk 0:00:16]}  Rxa4 {[%clk 0:02:23]} 45. Rc5 {[%clk 0:00:17]}  Rc4 {[%clk 0:02:23]} 46. Rxa5 {[%clk 0:00:17]}  Rc6 {[%clk 0:02:21]} 47. Rb5 {[%clk 0:00:17]}  Kf6 {[%clk 0:02:21]} 48. Kf2 {[%clk 0:00:18]}  Kf5 {[%clk 0:02:21]} 49. Kf3 {[%clk 0:00:15]}  Rc3+ {[%clk 0:02:21]} 50. Kf2 {[%clk 0:00:15]}  Kg4 {[%clk 0:02:21]} 51. Rb2 {[%clk 0:00:10]}  Rf3+ {[%clk 0:02:21]} 52. Ke2 {[%clk 0:00:09]}  Rxg3 {[%clk 0:02:13]} 53. Rb4 {[%clk 0:00:08]}  Rc3 {[%clk 0:02:11]} 54. Ra4 {[%clk 0:00:08]}  Rc6 {[%clk 0:02:10]} 55. Rb4 {[%clk 0:00:08]}  Kxh5 {[%clk 0:02:11]} 56. Ke3 {[%clk 0:00:08]}  Kg4 {[%clk 0:02:11]} 57. Rb2 {[%clk 0:00:06]}  Kf5 {[%clk 0:02:10]} 58. Kd4 {[%clk 0:00:06]}  Rc4+ {[%clk 0:02:09]} 59. Kd3 {[%clk 0:00:06]}  Kxf4 {[%clk 0:02:08]} 60. Re2 {[%clk 0:00:06]}  Kf5 {[%clk 0:02:08]} 61. Rf2+ {[%clk 0:00:06]}  Rf4 {[%clk 0:02:08]} 62. Rc2 {[%clk 0:00:06]}  Rb4 {[%clk 0:02:09]} 63. Rc7 {[%clk 0:00:06]}  Rxb6 {[%clk 0:02:09]} 64. Rxg7 {[%clk 0:00:07]}  h5 {[%clk 0:02:09]} 65. Rh7 {[%clk 0:00:07]}  Kg4 {[%clk 0:02:07]} 66. Rg7+ {[%clk 0:00:08]}  Kf4 {[%clk 0:02:07]} 67. Rh7 {[%clk 0:00:07]}  e5 {[%clk 0:02:08]} 68. Rxh5 {[%clk 0:00:08]}  Rb3+ {[%clk 0:02:09]} 69. Kc2 {[%clk 0:00:07]}  Rb5 {[%clk 0:02:07]} 70. Kd2 {[%clk 0:00:07]}  d4 {[%clk 0:02:06]} 71. Rh4+ {[%clk 0:00:07]}  Kf3 {[%clk 0:02:07]} 72. Rh3+ {[%clk 0:00:08]}  Ke4 {[%clk 0:02:07]} 73. Rh4+ {[%clk 0:00:08]}  Kd5 {[%clk 0:02:08]} 74. Rh5 {[%clk 0:00:08]}  Rb2+ {[%clk 0:02:08]} 75. Kd3 {[%clk 0:00:08]}  b5 {[%clk 0:02:06]} 76. Rxe5+ {[%clk 0:00:08]}  Kd6 {[%clk 0:01:54]} 77. Rh5 {[%clk 0:00:07]}  Rb4 {[%clk 0:01:52]} 78. Rg5 {[%clk 0:00:07]}  Kc6 {[%clk 0:01:52]} 79. Rh5 {[%clk 0:00:07]}  Kb6 {[%clk 0:01:53]} 80. Rg5 {[%clk 0:00:07]}  Rc4 {[%clk 0:01:52]} 81. Rg1 {[%clk 0:00:05]}  Ka5 {[%clk 0:01:52]} 82. Ra1+ {[%clk 0:00:06]}  Ra4 {[%clk 0:01:53]} 83. Rb1 {[%clk 0:00:06]}  Ra3+ {[%clk 0:01:50]} 84. Kxd4 {[%clk 0:00:06]}  b4 {[%clk 0:01:47]} 85. Kc4 {[%clk 0:00:06]}  Rc3+ {[%clk 0:01:48]} 86. Kd4 {[%clk 0:00:06]}  Ka4 {[%clk 0:01:49]} 87. Rb2 {[%clk 0:00:04]}  Ka3 {[%clk 0:01:48]} 88. Rb1 {[%clk 0:00:04]}  Rc2 {[%clk 0:01:47]} 89. Kd3 {[%clk 0:00:04]}  b3 {[%clk 0:01:47]} 90. Rf1 {[%clk 0:00:04]}  Rc7 {[%clk 0:01:46]} 91. Rh1 {[%clk 0:00:00]}  b2 {[%clk 0:01:46]} 0-1


[Site "https://www.chess.com"]

[Event "Titled Tuesday Blitz May 23 Early 2023"]
[White "Martic, Ivan"]
[Black "Kleiman, Jake"]
[WhiteFideId "929301"]
[BlackFideId "2020041"]
[WhiteElo "2360"]
[BlackElo "2636"]
[Result "1-0"]
[Round "11"]
[TimeControl "180+2"]
[Date "2023.05.23"]
[WhiteClock "0:00:47"]
[BlackClock "0:00:06"]

1. d4 {[%clk 0:02:50]}  Nf6 {[%clk 0:02:59]} 2. Bg5 {[%clk 0:02:49]}  Ne4 {[%clk 0:02:59]} 3. Bf4 {[%clk 0:02:48]}  Nc6 {[%clk 0:03:00]} 4. f3 {[%clk 0:02:47]}  Nf6 {[%clk 0:03:00]} 5. c3 {[%clk 0:02:45]}  d6 {[%clk 0:02:58]} 6. d5 {[%clk 0:02:44]}  e5 {[%clk 0:02:56]} 7. Bg5 {[%clk 0:02:35]}  Nb8 {[%clk 0:02:54]} 8. e4 {[%clk 0:02:33]}  Be7 {[%clk 0:02:54]} 9. Be3 {[%clk 0:02:33]}  O-O {[%clk 0:02:48]} 10. Bd3 {[%clk 0:02:28]}  Nh5 {[%clk 0:02:39]} 11. Ne2 {[%clk 0:02:27]}  Bg5 {[%clk 0:02:37]} 12. Bf2 {[%clk 0:02:27]}  c6 {[%clk 0:02:28]} 13. c4 {[%clk 0:02:26]}  Na6 {[%clk 0:02:21]} 14. Nbc3 {[%clk 0:02:25]}  Nc5 {[%clk 0:02:21]} 15. Bc2 {[%clk 0:02:24]}  a5 {[%clk 0:02:22]} 16. O-O {[%clk 0:02:22]}  Kh8 {[%clk 0:02:14]} 17. b3 {[%clk 0:02:20]}  Qe7 {[%clk 0:02:11]} 18. a3 {[%clk 0:02:19]}  Nf4 {[%clk 0:01:46]} 19. Nxf4 {[%clk 0:02:18]}  Bxf4 {[%clk 0:01:46]} 20. b4 {[%clk 0:02:15]}  axb4 {[%clk 0:01:47]} 21. axb4 {[%clk 0:02:15]}  Rxa1 {[%clk 0:01:48]} 22. Qxa1 {[%clk 0:02:14]}  Na6 {[%clk 0:01:49]} 23. Qa3 {[%clk 0:02:05]}  g6 {[%clk 0:01:15]} 24. c5 {[%clk 0:01:59]}  Rd8 {[%clk 0:00:54]} 25. Bd3 {[%clk 0:01:50]}  Nc7 {[%clk 0:00:50]} 26. cxd6 {[%clk 0:01:48]}  Qxd6 {[%clk 0:00:48]} 27. Bc5 {[%clk 0:01:47]}  Qf6 {[%clk 0:00:47]} 28. b5 {[%clk 0:01:42]}  Qh4 {[%clk 0:00:36]} 29. g3 {[%clk 0:01:42]}  Bxg3 {[%clk 0:00:32]} 30. hxg3 {[%clk 0:01:43]}  Qxg3+ {[%clk 0:00:33]} 31. Kh1 {[%clk 0:01:44]}  Bh3 {[%clk 0:00:24]} 32. Qb2 {[%clk 0:01:42]}  Bxf1 {[%clk 0:00:22]} 33. Bxf1 {[%clk 0:01:42]}  cxd5 {[%clk 0:00:19]} 34. exd5 {[%clk 0:01:28]}  Nxd5 {[%clk 0:00:17]} 35. Ne4 {[%clk 0:01:22]}  Qxf3+ {[%clk 0:00:15]} 36. Bg2 {[%clk 0:01:22]}  Qd1+ {[%clk 0:00:14]} 37. Bg1 {[%clk 0:01:18]}  Qh5+ {[%clk 0:00:14]} 38. Bh2 {[%clk 0:01:18]}  Nf4 {[%clk 0:00:13]} 39. Nf2 {[%clk 0:01:09]}  Qf5 {[%clk 0:00:10]} 40. Be4 {[%clk 0:01:02]}  Qh5 {[%clk 0:00:09]} 41. Kg1 {[%clk 0:00:58]}  b6 {[%clk 0:00:10]} 42. Bxf4 {[%clk 0:00:57]}  f6 {[%clk 0:00:07]} 43. Bg3 {[%clk 0:00:51]}  Rd4 {[%clk 0:00:07]} 44. Qa3 {[%clk 0:00:47]}  Qg5 {[%clk 0:00:06]} 45. Qf8# {[%clk 0:00:47]} 1-0


[Site "https://www.chess.com"]

[Event "Titled Tuesday Blitz May 23 Early 2023"]
[White "Mazarini41"]
[Black "Sielecki, Christof"]
[BlackFideId "4620437"]
[WhiteElo "2505"]
[BlackElo "2443"]
[Result "1-0"]
[Round "11"]
[TimeControl "180+2"]
[Date "2023.05.23"]
[WhiteClock "0:00:06"]
[BlackClock "0:00:08"]

1. d4 {[%clk 0:02:09]}  d5 {[%clk 0:02:59]} 2. c4 {[%clk 0:02:09]}  e6 {[%clk 0:02:59]} 3. Nf3 {[%clk 0:02:09]}  Nf6 {[%clk 0:02:59]} 4. g3 {[%clk 0:02:10]}  dxc4 {[%clk 0:02:58]} 5. Bg2 {[%clk 0:02:10]}  c5 {[%clk 0:02:59]} 6. O-O {[%clk 0:02:10]}  Nc6 {[%clk 0:02:59]} 7. Ne5 {[%clk 0:02:10]}  Bd7 {[%clk 0:02:57]} 8. Na3 {[%clk 0:02:05]}  cxd4 {[%clk 0:02:57]} 9. Naxc4 {[%clk 0:02:05]}  Be7 {[%clk 0:02:45]} 10. Qb3 {[%clk 0:02:00]}  Qc7 {[%clk 0:02:38]} 11. Bf4 {[%clk 0:01:59]}  Nh5 {[%clk 0:02:35]} 12. Nxc6 {[%clk 0:01:27]}  Nxf4 {[%clk 0:02:34]} 13. Nxe7 {[%clk 0:01:28]}  Nxg2 {[%clk 0:02:32]} 14. Rac1 {[%clk 0:01:01]}  Nf4 {[%clk 0:01:46]} 15. gxf4 {[%clk 0:00:59]}  Qxf4 {[%clk 0:01:40]} 16. Qb4 {[%clk 0:00:46]}  Qg5+ {[%clk 0:01:33]} 17. Kh1 {[%clk 0:00:46]}  Qxe7 {[%clk 0:01:33]} 18. Nd6+ {[%clk 0:00:28]}  Kf8 {[%clk 0:01:24]} 19. Qxd4 {[%clk 0:00:27]}  Bc6+ {[%clk 0:01:15]} 20. f3 {[%clk 0:00:27]}  Rd8 {[%clk 0:01:08]} 21. Rfd1 {[%clk 0:00:27]}  h5 {[%clk 0:01:03]} 22. Qxa7 {[%clk 0:00:27]}  Kg8 {[%clk 0:00:57]} 23. Nc4 {[%clk 0:00:17]}  Kh7 {[%clk 0:00:52]} 24. Qe3 {[%clk 0:00:15]}  Rxd1+ {[%clk 0:00:50]} 25. Rxd1 {[%clk 0:00:15]}  Rd8 {[%clk 0:00:48]} 26. Rxd8 {[%clk 0:00:14]}  Qxd8 {[%clk 0:00:49]} 27. Ne5 {[%clk 0:00:14]}  Be8 {[%clk 0:00:41]} 28. Qe4+ {[%clk 0:00:08]}  g6 {[%clk 0:00:40]} 29. Kg2 {[%clk 0:00:08]}  b5 {[%clk 0:00:39]} 30. Qd3 {[%clk 0:00:07]}  Qc7 {[%clk 0:00:38]} 31. Qd4 {[%clk 0:00:07]}  Qc2 {[%clk 0:00:35]} 32. Kf2 {[%clk 0:00:07]}  b4 {[%clk 0:00:25]} 33. Nd3 {[%clk 0:00:08]}  b3 {[%clk 0:00:24]} 34. axb3 {[%clk 0:00:07]}  Qxb3 {[%clk 0:00:25]} 35. Qf6 {[%clk 0:00:05]}  Qb7 {[%clk 0:00:22]} 36. Qd4 {[%clk 0:00:02]}  Bb5 {[%clk 0:00:20]} 37. Ne5 {[%clk 0:00:02]}  Ba6 {[%clk 0:00:18]} 38. Qf4 {[%clk 0:00:02]}  Kg7 {[%clk 0:00:18]} 39. Qd4 {[%clk 0:00:02]}  Kh7 {[%clk 0:00:18]} 40. Qf4 {[%clk 0:00:02]}  Kg7 {[%clk 0:00:18]} 41. Qd4 {[%clk 0:00:03]}  f6 {[%clk 0:00:18]} 42. Nd7 {[%clk 0:00:03]}  e5 {[%clk 0:00:16]} 43. Qd6 {[%clk 0:00:03]}  Qa7+ {[%clk 0:00:13]} 44. Kg2 {[%clk 0:00:03]}  Qe3 {[%clk 0:00:12]} 45. Qxf6+ {[%clk 0:00:04]}  Kh6 {[%clk 0:00:13]} 46. Qh8+ {[%clk 0:00:03]}  Kg5 {[%clk 0:00:13]} 47. Qxe5+ {[%clk 0:00:03]}  Qxe5 {[%clk 0:00:13]} 48. Nxe5 {[%clk 0:00:04]}  Kf5 {[%clk 0:00:14]} 49. Nd7 {[%clk 0:00:04]}  Bxe2 {[%clk 0:00:13]} 50. Kf2 {[%clk 0:00:04]}  Bc4 {[%clk 0:00:13]} 51. Nc5 {[%clk 0:00:04]}  g5 {[%clk 0:00:13]} 52. b4 {[%clk 0:00:04]}  g4 {[%clk 0:00:13]} 53. fxg4+ {[%clk 0:00:05]}  Kxg4 {[%clk 0:00:13]} 54. Ne4 {[%clk 0:00:04]}  Kh3 {[%clk 0:00:13]} 55. Kg1 {[%clk 0:00:04]}  h4 {[%clk 0:00:13]} 56. Nd6 {[%clk 0:00:04]}  Be6 {[%clk 0:00:13]} 57. b5 {[%clk 0:00:05]}  Bd5 {[%clk 0:00:13]} 58. b6 {[%clk 0:00:05]}  Kg4 {[%clk 0:00:13]} 59. b7 {[%clk 0:00:06]}  Bxb7 {[%clk 0:00:13]} 60. Nxb7 {[%clk 0:00:07]}  Kf3 {[%clk 0:00:14]} 61. Nd6 {[%clk 0:00:07]}  h3 {[%clk 0:00:15]} 62. Nf5 {[%clk 0:00:06]}  Ke2 {[%clk 0:00:16]} 63. Nd4+ {[%clk 0:00:05]}  Ke3 {[%clk 0:00:15]} 64. Ne6 {[%clk 0:00:06]}  Kf3 {[%clk 0:00:15]} 65. Kf1 {[%clk 0:00:04]}  Kg4 {[%clk 0:00:14]} 66. Kf2 {[%clk 0:00:05]}  Kf5 {[%clk 0:00:14]} 67. Nd4+ {[%clk 0:00:05]}  Kg4 {[%clk 0:00:15]} 68. Ne2 {[%clk 0:00:05]}  Kh4 {[%clk 0:00:15]} 69. Kf3 {[%clk 0:00:06]}  Kg5 {[%clk 0:00:08]} 70. Kg3 {[%clk 0:00:06]} 1-0


[Site "https://www.chess.com"]

[Event "Titled Tuesday Blitz May 23 Early 2023"]
[White "Garakov, Mikhael"]
[Black "brm72"]
[WhiteFideId "4169034"]
[WhiteElo "2347"]
[BlackElo "2609"]
[Result "1-0"]
[Round "11"]
[TimeControl "180+2"]
[Date "2023.05.23"]
[WhiteClock "0:00:57"]
[BlackClock "0:01:15"]

1. e4 {[%clk 0:03:00]}  c5 {[%clk 0:02:59]} 2. Nf3 {[%clk 0:02:59]}  d6 {[%clk 0:03:00]} 3. d4 {[%clk 0:02:59]}  cxd4 {[%clk 0:03:00]} 4. Nxd4 {[%clk 0:03:00]}  Nf6 {[%clk 0:03:01]} 5. Nc3 {[%clk 0:03:00]}  a6 {[%clk 0:03:01]} 6. f4 {[%clk 0:02:59]}  e6 {[%clk 0:02:57]} 7. Be3 {[%clk 0:02:57]}  Be7 {[%clk 0:02:57]} 8. Qf3 {[%clk 0:02:55]}  Nbd7 {[%clk 0:02:53]} 9. g4 {[%clk 0:02:52]}  h6 {[%clk 0:02:39]} 10. O-O-O {[%clk 0:02:49]}  Qc7 {[%clk 0:02:39]} 11. h4 {[%clk 0:02:24]}  b5 {[%clk 0:02:25]} 12. g5 {[%clk 0:02:22]}  Ng8 {[%clk 0:02:12]} 13. g6 {[%clk 0:02:22]}  Ngf6 {[%clk 0:02:07]} 14. gxf7+ {[%clk 0:02:19]}  Kxf7 {[%clk 0:02:07]} 15. Rg1 {[%clk 0:01:44]}  Nc5 {[%clk 0:01:48]} 16. e5 {[%clk 0:01:41]}  Bb7 {[%clk 0:01:46]} 17. Qg3 {[%clk 0:01:38]}  Ne8 {[%clk 0:01:31]} 18. Qg6+ {[%clk 0:01:04]}  Kf8 {[%clk 0:01:27]} 19. f5 {[%clk 0:00:57]}  dxe5 {[%clk 0:01:21]} 20. Nxe6+ {[%clk 0:00:57]}  Nxe6 {[%clk 0:01:19]} 21. fxe6 {[%clk 0:00:58]}  Bf6 {[%clk 0:01:15]} 22. Rd7 {[%clk 0:00:57]} 1-0


[Site "https://www.chess.com"]

[Event "Titled Tuesday Blitz May 23 Early 2023"]
[White "Senft, Sean"]
[Black "Iskusnyh, Sergei"]
[WhiteFideId "2044960"]
[BlackFideId "4120027"]
[WhiteElo "1989"]
[BlackElo "2492"]
[Result "0-1"]
[Round "11"]
[TimeControl "180+2"]
[Date "2023.05.23"]
[WhiteClock "0:00:00"]
[BlackClock "0:00:29"]

1. d4 {[%clk 0:02:54]}  d5 {[%clk 0:02:59]} 2. c4 {[%clk 0:02:53]}  c6 {[%clk 0:02:59]} 3. Nc3 {[%clk 0:02:53]}  Nf6 {[%clk 0:02:59]} 4. Nf3 {[%clk 0:02:53]}  a6 {[%clk 0:02:58]} 5. cxd5 {[%clk 0:02:52]}  cxd5 {[%clk 0:02:58]} 6. Bf4 {[%clk 0:02:52]}  Nc6 {[%clk 0:02:57]} 7. e3 {[%clk 0:02:53]}  Bg4 {[%clk 0:02:57]} 8. Bd3 {[%clk 0:02:53]}  e6 {[%clk 0:02:55]} 9. O-O {[%clk 0:02:53]}  Bd6 {[%clk 0:02:53]} 10. Bg3 {[%clk 0:02:50]}  O-O {[%clk 0:02:51]} 11. Rc1 {[%clk 0:02:50]}  Rc8 {[%clk 0:02:35]} 12. Bb1 {[%clk 0:02:49]}  Qe7 {[%clk 0:02:08]} 13. a3 {[%clk 0:02:47]}  Bxg3 {[%clk 0:02:04]} 14. hxg3 {[%clk 0:02:47]}  Na5 {[%clk 0:02:04]} 15. Ba2 {[%clk 0:02:25]}  Nc4 {[%clk 0:01:58]} 16. Bxc4 {[%clk 0:02:18]}  Rxc4 {[%clk 0:01:59]} 17. Qd3 {[%clk 0:02:17]}  Bxf3 {[%clk 0:01:46]} 18. gxf3 {[%clk 0:02:18]}  Rfc8 {[%clk 0:01:47]} 19. Kg2 {[%clk 0:02:14]}  b5 {[%clk 0:01:45]} 20. Rh1 {[%clk 0:02:14]}  g6 {[%clk 0:01:45]} 21. Qd2 {[%clk 0:01:59]}  Ne8 {[%clk 0:01:35]} 22. Rh2 {[%clk 0:01:53]}  Nf6 {[%clk 0:01:21]} 23. g4 {[%clk 0:01:48]}  h5 {[%clk 0:01:16]} 24. gxh5 {[%clk 0:01:45]}  Nxh5 {[%clk 0:01:16]} 25. Rg1 {[%clk 0:01:41]}  Qf6 {[%clk 0:01:03]} 26. Qe2 {[%clk 0:01:29]}  Kf8 {[%clk 0:00:58]} 27. Rd1 {[%clk 0:00:46]}  Ke7 {[%clk 0:00:50]} 28. Qd3 {[%clk 0:00:37]}  Ng7 {[%clk 0:00:47]} 29. Kf1 {[%clk 0:00:14]}  Nf5 {[%clk 0:00:46]} 30. Ke2 {[%clk 0:00:13]}  Nd6 {[%clk 0:00:44]} 31. Rdh1 {[%clk 0:00:07]}  R4c7 {[%clk 0:00:43]} 32. Rh7 {[%clk 0:00:07]}  Nc4 {[%clk 0:00:43]} 33. Qb1 {[%clk 0:00:05]}  Nd6 {[%clk 0:00:37]} 34. R7h2 {[%clk 0:00:03]}  Qf5 {[%clk 0:00:32]} 35. Qxf5 {[%clk 0:00:02]}  Nxf5 {[%clk 0:00:32]} 36. Rh7 {[%clk 0:00:03]}  Nd6 {[%clk 0:00:31]} 37. Rg7 {[%clk 0:00:02]}  Kf6 {[%clk 0:00:30]} 38. Rhh7 {[%clk 0:00:00]}  Rf8 {[%clk 0:00:29]} 0-1


[Site "https://www.chess.com"]

[Event "Titled Tuesday Blitz May 23 Early 2023"]
[White "Fiorito, Joaquin"]
[Black "Bashkansky, Ethan"]
[WhiteFideId "180173"]
[BlackFideId "2071533"]
[WhiteElo "2157"]
[BlackElo "2349"]
[Result "1-0"]
[Round "11"]
[TimeControl "180+2"]
[Date "2023.05.23"]
[WhiteClock "0:00:05"]
[BlackClock "0:00:03"]

1. d4 {[%clk 0:03:00]}  f5 {[%clk 0:02:59]} 2. c4 {[%clk 0:03:01]}  Nf6 {[%clk 0:02:59]} 3. Nc3 {[%clk 0:03:01]}  g6 {[%clk 0:03:00]} 4. Nf3 {[%clk 0:03:02]}  Bg7 {[%clk 0:03:00]} 5. h3 {[%clk 0:03:01]}  d6 {[%clk 0:03:00]} 6. Bf4 {[%clk 0:03:00]}  O-O {[%clk 0:03:00]} 7. e3 {[%clk 0:03:01]}  Nh5 {[%clk 0:02:57]} 8. Bh2 {[%clk 0:03:00]}  Nc6 {[%clk 0:02:57]} 9. Be2 {[%clk 0:03:00]}  a6 {[%clk 0:02:52]} 10. O-O {[%clk 0:03:00]}  e5 {[%clk 0:02:52]} 11. c5 {[%clk 0:02:46]}  e4 {[%clk 0:02:40]} 12. Bc4+ {[%clk 0:02:41]}  Kh8 {[%clk 0:02:36]} 13. Nd2 {[%clk 0:02:41]}  Na5 {[%clk 0:02:08]} 14. Be2 {[%clk 0:02:38]}  dxc5 {[%clk 0:01:45]} 15. dxc5 {[%clk 0:02:37]}  Be6 {[%clk 0:01:38]} 16. Qc2 {[%clk 0:02:29]}  Nf6 {[%clk 0:01:35]} 17. Rfd1 {[%clk 0:02:27]}  Qe7 {[%clk 0:01:35]} 18. b4 {[%clk 0:02:25]}  Nc6 {[%clk 0:01:35]} 19. a3 {[%clk 0:02:26]}  Bg8 {[%clk 0:01:32]} 20. Nc4 {[%clk 0:02:24]}  Rfd8 {[%clk 0:01:28]} 21. Rab1 {[%clk 0:02:21]}  Nd5 {[%clk 0:01:19]} 22. Nxd5 {[%clk 0:02:19]}  Rxd5 {[%clk 0:01:15]} 23. Rxd5 {[%clk 0:01:51]}  Bxd5 {[%clk 0:01:16]} 24. Rd1 {[%clk 0:01:36]}  Bxc4 {[%clk 0:01:15]} 25. Bxc4 {[%clk 0:01:35]}  Rd8 {[%clk 0:01:14]} 26. Rxd8+ {[%clk 0:01:17]}  Qxd8 {[%clk 0:01:11]} 27. Bg3 {[%clk 0:01:16]}  Ne5 {[%clk 0:01:06]} 28. Bxe5 {[%clk 0:01:14]}  Bxe5 {[%clk 0:01:07]} 29. g3 {[%clk 0:01:15]}  Kg7 {[%clk 0:01:02]} 30. h4 {[%clk 0:01:15]}  h6 {[%clk 0:01:01]} 31. Be2 {[%clk 0:01:12]}  c6 {[%clk 0:00:52]} 32. h5 {[%clk 0:01:11]}  g5 {[%clk 0:00:45]} 33. Bc4 {[%clk 0:01:07]}  Bf6 {[%clk 0:00:33]} 34. Be6 {[%clk 0:01:05]}  Qd3 {[%clk 0:00:30]} 35. Qa4 {[%clk 0:00:56]}  f4 {[%clk 0:00:25]} 36. gxf4 {[%clk 0:00:55]}  gxf4 {[%clk 0:00:26]} 37. Qa5 {[%clk 0:00:54]}  Qd1+ {[%clk 0:00:19]} 38. Kg2 {[%clk 0:00:21]}  f3+ {[%clk 0:00:18]} 39. Kh2 {[%clk 0:00:18]}  Be5+ {[%clk 0:00:17]} 40. Kh3 {[%clk 0:00:18]}  Qh1+ {[%clk 0:00:14]} 41. Kg4 {[%clk 0:00:19]}  Qg2+ {[%clk 0:00:14]} 42. Kf5 {[%clk 0:00:19]}  Qg5+ {[%clk 0:00:08]} 43. Kxe4 {[%clk 0:00:20]}  Kf6 {[%clk 0:00:08]} 44. Bc8 {[%clk 0:00:08]}  Qh4+ {[%clk 0:00:05]} 45. Kd3 {[%clk 0:00:07]}  Qxh5 {[%clk 0:00:05]} 46. Qd8+ {[%clk 0:00:07]}  Kg6 {[%clk 0:00:04]} 47. Be6 {[%clk 0:00:05]}  Qg5 {[%clk 0:00:02]} 48. Qe8+ {[%clk 0:00:04]}  Kh7 {[%clk 0:00:01]} 49. Qf7+ {[%clk 0:00:03]}  Qg7 {[%clk 0:00:02]} 50. Bf5+ {[%clk 0:00:04]}  Kh8 {[%clk 0:00:02]} 51. Qe8+ {[%clk 0:00:03]}  Qg8 {[%clk 0:00:03]} 52. Qxe5+ {[%clk 0:00:04]}  Qg7 {[%clk 0:00:03]} 53. Qxg7+ {[%clk 0:00:05]}  Kxg7 {[%clk 0:00:03]} 54. Ke4 {[%clk 0:00:05]} 1-0


[Site "https://www.chess.com"]

[Event "Titled Tuesday Blitz May 23 Early 2023"]
[White "Stribuk, Artiom"]
[Black "Devaev, Alexander"]
[WhiteFideId "13515659"]
[BlackFideId "4169395"]
[WhiteElo "2303"]
[BlackElo "2172"]
[Result "1-0"]
[Round "11"]
[TimeControl "180+2"]
[Date "2023.05.23"]
[WhiteClock "0:00:22"]
[BlackClock "0:00:08"]

1. d4 {[%clk 0:03:00]}  Nf6 {[%clk 0:02:59]} 2. c4 {[%clk 0:03:00]}  e6 {[%clk 0:03:00]} 3. g3 {[%clk 0:02:59]}  c5 {[%clk 0:03:00]} 4. Nf3 {[%clk 0:02:58]}  cxd4 {[%clk 0:02:54]} 5. Nxd4 {[%clk 0:02:59]}  Nc6 {[%clk 0:02:54]} 6. Bg2 {[%clk 0:02:50]}  Be7 {[%clk 0:02:54]} 7. O-O {[%clk 0:02:49]}  O-O {[%clk 0:02:55]} 8. Nc3 {[%clk 0:02:42]}  Ne5 {[%clk 0:02:54]} 9. b3 {[%clk 0:02:40]}  d6 {[%clk 0:02:47]} 10. Bb2 {[%clk 0:02:20]}  a6 {[%clk 0:02:47]} 11. e4 {[%clk 0:02:15]}  Qc7 {[%clk 0:02:47]} 12. Qe2 {[%clk 0:02:11]}  Re8 {[%clk 0:02:43]} 13. f4 {[%clk 0:02:08]}  Ng6 {[%clk 0:02:42]} 14. Kh1 {[%clk 0:02:03]}  Bf8 {[%clk 0:02:42]} 15. Rae1 {[%clk 0:02:03]}  Nd7 {[%clk 0:02:41]} 16. h4 {[%clk 0:01:57]}  Be7 {[%clk 0:02:36]} 17. h5 {[%clk 0:01:56]}  Ngf8 {[%clk 0:02:37]} 18. h6 {[%clk 0:01:39]}  g6 {[%clk 0:02:35]} 19. e5 {[%clk 0:01:31]}  Rb8 {[%clk 0:02:23]} 20. f5 {[%clk 0:01:16]}  Nxe5 {[%clk 0:02:01]} 21. fxe6 {[%clk 0:00:57]}  fxe6 {[%clk 0:01:56]} 22. Ne4 {[%clk 0:00:51]}  b6 {[%clk 0:01:37]} 23. Qf2 {[%clk 0:00:46]}  Bb7 {[%clk 0:01:03]} 24. Nb5 {[%clk 0:00:27]}  axb5 {[%clk 0:00:46]} 25. Bxe5 {[%clk 0:00:27]}  Bd8 {[%clk 0:00:10]} 26. Bxd6 {[%clk 0:00:24]}  Qd7 {[%clk 0:00:08]} 27. Qxf8+ {[%clk 0:00:21]}  Rxf8 {[%clk 0:00:08]} 28. Rxf8# {[%clk 0:00:22]} 1-0


[Site "https://www.chess.com"]